[Event "Titled Tuesday Blitz May 16 Late 2023"]
[White "Matlakov, Maxim"]
[Black "chess123456s"]
[WhiteFideId "4168003"]
[WhiteElo "2666"]
[BlackElo "2609"]
[Result "1-0"]
[Round "04"]
[TimeControl "180+2"]
[Date "2023.05.16"]
[WhiteClock "0:00:56"]
[BlackClock "0:00:17"]

1. d4 {[%clk 0:03:00]}  d5 {[%clk 0:02:59]} 2. Nf3 {[%clk 0:03:01]}  Nf6 {[%clk 0:02:59]} 3. e3 {[%clk 0:03:01]}  Bf5 {[%clk 0:02:58]} 4. c4 {[%clk 0:03:01]}  c6 {[%clk 0:02:58]} 5. Nh4 {[%clk 0:02:59]}  Bc8 {[%clk 0:02:57]} 6. Nc3 {[%clk 0:02:59]}  e6 {[%clk 0:02:56]} 7. Nf3 {[%clk 0:02:58]}  Nbd7 {[%clk 0:02:56]} 8. Qc2 {[%clk 0:02:56]}  Bd6 {[%clk 0:02:55]} 9. b3 {[%clk 0:02:55]}  O-O {[%clk 0:02:54]} 10. Bb2 {[%clk 0:02:55]}  e5 {[%clk 0:02:53]} 11. Be2 {[%clk 0:02:56]}  e4 {[%clk 0:02:49]} 12. Nd2 {[%clk 0:02:56]}  Re8 {[%clk 0:02:47]} 13. g4 {[%clk 0:02:53]}  Nf8 {[%clk 0:02:46]} 14. h3 {[%clk 0:02:52]}  h6 {[%clk 0:02:43]} 15. O-O-O {[%clk 0:02:51]}  Ng6 {[%clk 0:02:44]} 16. Kb1 {[%clk 0:02:51]}  Bd7 {[%clk 0:02:27]} 17. Rdg1 {[%clk 0:02:51]}  Nh4 {[%clk 0:02:27]} 18. g5 {[%clk 0:02:46]}  hxg5 {[%clk 0:01:51]} 19. Rxg5 {[%clk 0:02:47]}  Be6 {[%clk 0:01:40]} 20. Rhg1 {[%clk 0:02:40]}  g6 {[%clk 0:01:39]} 21. f3 {[%clk 0:02:34]}  Nh7 {[%clk 0:01:32]} 22. cxd5 {[%clk 0:02:10]}  cxd5 {[%clk 0:01:20]} 23. Rxd5 {[%clk 0:02:10]}  Bxd5 {[%clk 0:01:20]} 24. Nxd5 {[%clk 0:02:11]}  exf3 {[%clk 0:01:20]} 25. Nxf3 {[%clk 0:02:07]}  Nxf3 {[%clk 0:01:10]} 26. Bxf3 {[%clk 0:02:07]}  Rc8 {[%clk 0:01:02]} 27. Qd3 {[%clk 0:02:05]}  Bf8 {[%clk 0:00:46]} 28. e4 {[%clk 0:01:51]}  Bg7 {[%clk 0:00:41]} 29. e5 {[%clk 0:01:49]}  Ng5 {[%clk 0:00:40]} 30. Bg2 {[%clk 0:01:42]}  Ne6 {[%clk 0:00:39]} 31. Rf1 {[%clk 0:01:41]}  Qg5 {[%clk 0:00:35]} 32. Qf3 {[%clk 0:01:39]}  Rf8 {[%clk 0:00:29]} 33. h4 {[%clk 0:01:38]}  Qd2 {[%clk 0:00:24]} 34. Ne7+ {[%clk 0:01:35]}  Kh8 {[%clk 0:00:24]} 35. Nxc8 {[%clk 0:01:33]}  Rxc8 {[%clk 0:00:24]} 36. Rd1 {[%clk 0:01:18]}  Qc2+ {[%clk 0:00:21]} 37. Ka1 {[%clk 0:01:19]}  Rd8 {[%clk 0:00:11]} 38. Rc1 {[%clk 0:01:04]}  Nxd4 {[%clk 0:00:09]} 39. Rxc2 {[%clk 0:01:01]}  Nxf3 {[%clk 0:00:08]} 40. Bxf3 {[%clk 0:01:01]}  Rd3 {[%clk 0:00:07]} 41. Be2 {[%clk 0:00:57]}  Re3 {[%clk 0:00:06]} 42. Bc4 {[%clk 0:00:51]}  Re1+ {[%clk 0:00:04]} 43. Rc1 {[%clk 0:00:52]}  Rxc1+ {[%clk 0:00:04]} 44. Bxc1 {[%clk 0:00:53]}  Bxe5+ {[%clk 0:00:04]} 45. Bb2 {[%clk 0:00:53]}  Bxb2+ {[%clk 0:00:05]} 46. Kxb2 {[%clk 0:00:54]}  Kg7 {[%clk 0:00:05]} 47. Kc3 {[%clk 0:00:54]}  f6 {[%clk 0:00:06]} 48. Kd4 {[%clk 0:00:54]}  Kh6 {[%clk 0:00:07]} 49. Kd5 {[%clk 0:00:52]}  Kh5 {[%clk 0:00:07]} 50. Ke6 {[%clk 0:00:51]}  f5 {[%clk 0:00:07]} 51. Kf6 {[%clk 0:00:51]}  f4 {[%clk 0:00:05]} 52. Be2+ {[%clk 0:00:49]}  Kxh4 {[%clk 0:00:05]} 53. Kxg6 {[%clk 0:00:49]}  Kg3 {[%clk 0:00:06]} 54. Kf5 {[%clk 0:00:49]}  f3 {[%clk 0:00:06]} 55. Bc4 {[%clk 0:00:49]}  f2 {[%clk 0:00:05]} 56. Ke4 {[%clk 0:00:48]}  a6 {[%clk 0:00:04]} 57. a4 {[%clk 0:00:48]}  Kg2 {[%clk 0:00:04]} 58. a5 {[%clk 0:00:48]}  f1=Q {[%clk 0:00:04]} 59. Bxf1+ {[%clk 0:00:48]}  Kxf1 {[%clk 0:00:05]} 60. Kd5 {[%clk 0:00:48]}  Ke2 {[%clk 0:00:06]} 61. Kc5 {[%clk 0:00:49]}  Kd3 {[%clk 0:00:06]} 62. Kb6 {[%clk 0:00:50]}  Kc3 {[%clk 0:00:07]} 63. Kxb7 {[%clk 0:00:50]}  Kxb3 {[%clk 0:00:08]} 64. Kxa6 {[%clk 0:00:51]}  Kb4 {[%clk 0:00:09]} 65. Kb6 {[%clk 0:00:51]}  Kc4 {[%clk 0:00:10]} 66. a6 {[%clk 0:00:52]}  Kd5 {[%clk 0:00:11]} 67. a7 {[%clk 0:00:52]}  Kc4 {[%clk 0:00:11]} 68. a8=Q {[%clk 0:00:53]}  Kb4 {[%clk 0:00:12]} 69. Qd5 {[%clk 0:00:52]}  Kc3 {[%clk 0:00:13]} 70. Qe4 {[%clk 0:00:52]}  Kb2 {[%clk 0:00:13]} 71. Qd3 {[%clk 0:00:53]}  Ka1 {[%clk 0:00:14]} 72. Qd2 {[%clk 0:00:53]}  Kb1 {[%clk 0:00:14]} 73. Kb5 {[%clk 0:00:54]}  Ka1 {[%clk 0:00:15]} 74. Kb4 {[%clk 0:00:55]}  Kb1 {[%clk 0:00:16]} 75. Kb3 {[%clk 0:00:55]}  Ka1 {[%clk 0:00:17]} 76. Qb2# {[%clk 0:00:56]} 1-0


[Site "https://www.chess.com"]

[Event "Titled Tuesday Blitz May 16 Late 2023"]
[White "Tarlabasi, Emirhan"]
[Black "Zakhartsov, Vladimir"]
[WhiteFideId "6350275"]
[BlackFideId "4145097"]
[WhiteElo "2200"]
[BlackElo "2495"]
[Result "0-1"]
[Round "04"]
[TimeControl "180+2"]
[Date "2023.05.16"]
[WhiteClock "0:00:02"]
[BlackClock "0:00:16"]

1. d4 {[%clk 0:03:00]}  d5 {[%clk 0:02:52]} 2. c4 {[%clk 0:03:00]}  e6 {[%clk 0:02:52]} 3. Nc3 {[%clk 0:02:57]}  Nf6 {[%clk 0:02:51]} 4. cxd5 {[%clk 0:02:56]}  Nxd5 {[%clk 0:02:51]} 5. e4 {[%clk 0:02:53]}  Nxc3 {[%clk 0:02:51]} 6. bxc3 {[%clk 0:02:54]}  c5 {[%clk 0:02:52]} 7. Nf3 {[%clk 0:02:55]}  cxd4 {[%clk 0:02:52]} 8. cxd4 {[%clk 0:02:56]}  Bb4+ {[%clk 0:02:52]} 9. Bd2 {[%clk 0:02:56]}  Bxd2+ {[%clk 0:02:52]} 10. Qxd2 {[%clk 0:02:57]}  O-O {[%clk 0:02:52]} 11. Be2 {[%clk 0:02:48]}  b6 {[%clk 0:02:52]} 12. O-O {[%clk 0:02:48]}  Bb7 {[%clk 0:02:51]} 13. Qe3 {[%clk 0:02:39]}  Nd7 {[%clk 0:02:51]} 14. a4 {[%clk 0:02:38]}  Nf6 {[%clk 0:02:50]} 15. Bd3 {[%clk 0:02:38]}  Rc8 {[%clk 0:02:45]} 16. Ra3 {[%clk 0:02:29]}  Qe7 {[%clk 0:02:39]} 17. Rfa1 {[%clk 0:02:20]}  Rc7 {[%clk 0:02:35]} 18. h3 {[%clk 0:02:19]}  Rfc8 {[%clk 0:02:33]} 19. a5 {[%clk 0:02:18]}  g6 {[%clk 0:02:31]} 20. axb6 {[%clk 0:02:14]}  axb6 {[%clk 0:02:31]} 21. Ra7 {[%clk 0:01:57]}  Bc6 {[%clk 0:01:59]} 22. Rxc7 {[%clk 0:01:55]}  Qxc7 {[%clk 0:01:58]} 23. e5 {[%clk 0:01:47]}  Nd7 {[%clk 0:01:45]} 24. Ng5 {[%clk 0:01:07]}  h6 {[%clk 0:01:38]} 25. Nxf7 {[%clk 0:00:18]}  Kxf7 {[%clk 0:01:38]} 26. Qxh6 {[%clk 0:00:18]}  Nf8 {[%clk 0:01:28]} 27. Bxg6+ {[%clk 0:00:18]}  Kg8 {[%clk 0:01:26]} 28. Ra3 {[%clk 0:00:14]}  Qg7 {[%clk 0:01:18]} 29. Bh7+ {[%clk 0:00:10]}  Kh8 {[%clk 0:00:44]} 30. Qxg7+ {[%clk 0:00:10]}  Kxg7 {[%clk 0:00:45]} 31. Bd3 {[%clk 0:00:10]}  b5 {[%clk 0:00:31]} 32. Rb3 {[%clk 0:00:08]}  Rb8 {[%clk 0:00:31]} 33. f4 {[%clk 0:00:08]}  b4 {[%clk 0:00:29]} 34. Bc4 {[%clk 0:00:07]}  Ba4 {[%clk 0:00:27]} 35. Rb2 {[%clk 0:00:07]}  b3 {[%clk 0:00:24]} 36. d5 {[%clk 0:00:05]}  Rb4 {[%clk 0:00:22]} 37. dxe6 {[%clk 0:00:02]}  Rxc4 {[%clk 0:00:18]} 38. f5 {[%clk 0:00:03]}  Rc2 {[%clk 0:00:17]} 39. Rb1 {[%clk 0:00:02]}  b2 {[%clk 0:00:18]} 40. Kh2 {[%clk 0:00:02]}  Nh7 {[%clk 0:00:16]} 41. f6+ {[%clk 0:00:02]}  Nxf6 {[%clk 0:00:15]} 42. exf6+ {[%clk 0:00:02]}  Kxf6 {[%clk 0:00:16]} 0-1


[Site "https://www.chess.com"]

[Event "Titled Tuesday Blitz May 16 Late 2023"]
[White "Pap, Gyula"]
[Black "Boor, Carl"]
[WhiteFideId "725323"]
[BlackFideId "2017008"]
[WhiteElo "2519"]
[BlackElo "2330"]
[Result "1-0"]
[Round "04"]
[TimeControl "180+2"]
[Date "2023.05.16"]
[WhiteClock "0:00:29"]
[BlackClock "0:00:00"]

1. Nf3 {[%clk 0:03:00]}  h5 {[%clk 0:02:58]} 2. e4 {[%clk 0:02:59]}  a5 {[%clk 0:02:58]} 3. d4 {[%clk 0:02:59]}  e6 {[%clk 0:02:58]} 4. c4 {[%clk 0:02:56]}  h4 {[%clk 0:02:58]} 5. h3 {[%clk 0:02:56]}  Be7 {[%clk 0:02:54]} 6. Nc3 {[%clk 0:02:56]}  d6 {[%clk 0:02:53]} 7. Bd3 {[%clk 0:02:49]}  Nf6 {[%clk 0:02:52]} 8. Be3 {[%clk 0:02:42]}  Nc6 {[%clk 0:02:49]} 9. d5 {[%clk 0:02:39]}  Nb4 {[%clk 0:02:47]} 10. Be2 {[%clk 0:02:39]}  e5 {[%clk 0:02:45]} 11. a3 {[%clk 0:02:40]}  Na6 {[%clk 0:02:44]} 12. b4 {[%clk 0:02:40]}  axb4 {[%clk 0:02:31]} 13. axb4 {[%clk 0:02:40]}  Bd7 {[%clk 0:02:30]} 14. Rb1 {[%clk 0:02:39]}  Nh5 {[%clk 0:02:27]} 15. Qd2 {[%clk 0:02:37]}  b6 {[%clk 0:02:19]} 16. O-O {[%clk 0:02:32]}  g6 {[%clk 0:02:12]} 17. c5 {[%clk 0:02:27]}  bxc5 {[%clk 0:01:43]} 18. bxc5 {[%clk 0:02:27]}  Nxc5 {[%clk 0:01:40]} 19. Bxc5 {[%clk 0:02:27]}  dxc5 {[%clk 0:01:40]} 20. Nxe5 {[%clk 0:02:27]}  Bd6 {[%clk 0:01:39]} 21. Nxd7 {[%clk 0:02:25]}  Bf4 {[%clk 0:01:10]} 22. Qb2 {[%clk 0:02:01]}  Kxd7 {[%clk 0:01:09]} 23. Bb5+ {[%clk 0:01:33]}  Ke7 {[%clk 0:01:08]} 24. d6+ {[%clk 0:01:33]}  Kf8 {[%clk 0:00:56]} 25. Nd5 {[%clk 0:01:34]}  Rh7 {[%clk 0:00:25]} 26. Bc6 {[%clk 0:01:27]}  Bxd6 {[%clk 0:00:09]} 27. Bxa8 {[%clk 0:01:23]}  Qxa8 {[%clk 0:00:09]} 28. Qb8+ {[%clk 0:01:22]}  Qxb8 {[%clk 0:00:09]} 29. Rxb8+ {[%clk 0:01:22]}  Kg7 {[%clk 0:00:09]} 30. f4 {[%clk 0:01:23]}  c4 {[%clk 0:00:08]} 31. e5 {[%clk 0:01:21]}  Bc5+ {[%clk 0:00:08]} 32. Kh2 {[%clk 0:01:22]}  Ng3 {[%clk 0:00:09]} 33. Rc1 {[%clk 0:01:22]}  Bd4 {[%clk 0:00:05]} 34. Rb4 {[%clk 0:01:08]}  c5 {[%clk 0:00:03]} 35. Rbxc4 {[%clk 0:01:08]}  g5 {[%clk 0:00:04]} 36. Re1 {[%clk 0:00:56]}  gxf4 {[%clk 0:00:03]} 37. Nxf4 {[%clk 0:00:57]}  Bf2 {[%clk 0:00:02]} 38. Rd1 {[%clk 0:00:53]}  Rh8 {[%clk 0:00:02]} 39. e6 {[%clk 0:00:46]}  Nf5 {[%clk 0:00:00]} 40. Re4 {[%clk 0:00:29]} 1-0


[Site "https://www.chess.com"]

[Event "Titled Tuesday Blitz May 16 Late 2023"]
[White "Ismagilov, Damir"]
[Black "Antipov, Mikhail Al."]
[WhiteFideId "34199982"]
[BlackFideId "4107012"]
[WhiteElo "2143"]
[BlackElo "2513"]
[Result "0-1"]
[Round "04"]
[TimeControl "180+2"]
[Date "2023.05.16"]
[WhiteClock "0:00:08"]
[BlackClock "0:00:10"]

1. f4 {[%clk 0:03:00]}  d6 {[%clk 0:02:59]} 2. Nf3 {[%clk 0:03:00]}  e5 {[%clk 0:02:59]} 3. fxe5 {[%clk 0:03:00]}  dxe5 {[%clk 0:03:00]} 4. Nxe5 {[%clk 0:02:56]}  Bd6 {[%clk 0:02:59]} 5. d4 {[%clk 0:02:54]}  Nf6 {[%clk 0:02:57]} 6. g3 {[%clk 0:02:50]}  Nbd7 {[%clk 0:02:47]} 7. Nc4 {[%clk 0:02:38]}  h5 {[%clk 0:02:36]} 8. Nxd6+ {[%clk 0:02:37]}  cxd6 {[%clk 0:02:37]} 9. Bg2 {[%clk 0:02:35]}  h4 {[%clk 0:02:38]} 10. Bf4 {[%clk 0:02:32]}  Nh5 {[%clk 0:02:27]} 11. Qd2 {[%clk 0:02:12]}  Qb6 {[%clk 0:02:10]} 12. Nc3 {[%clk 0:02:00]}  Nxf4 {[%clk 0:01:56]} 13. gxf4 {[%clk 0:01:59]}  Nf6 {[%clk 0:01:52]} 14. O-O-O {[%clk 0:01:42]}  h3 {[%clk 0:01:37]} 15. Bf3 {[%clk 0:01:41]}  Bg4 {[%clk 0:01:38]} 16. Qe3+ {[%clk 0:01:20]}  Kf8 {[%clk 0:01:37]} 17. Bxg4 {[%clk 0:01:20]}  Nxg4 {[%clk 0:01:37]} 18. Qf3 {[%clk 0:01:20]}  Nf6 {[%clk 0:01:35]} 19. e4 {[%clk 0:01:20]}  Qc6 {[%clk 0:01:26]} 20. d5 {[%clk 0:01:10]}  Qc4 {[%clk 0:01:22]} 21. e5 {[%clk 0:01:07]}  Nh5 {[%clk 0:01:21]} 22. Rhf1 {[%clk 0:00:59]}  Re8 {[%clk 0:01:17]} 23. exd6 {[%clk 0:00:56]}  Nf6 {[%clk 0:01:15]} 24. Rde1 {[%clk 0:00:53]}  Rxe1+ {[%clk 0:01:12]} 25. Rxe1 {[%clk 0:00:52]}  Rh4 {[%clk 0:01:12]} 26. f5 {[%clk 0:00:27]}  Qb4 {[%clk 0:00:18]} 27. Qg3 {[%clk 0:00:19]}  Qf4+ {[%clk 0:00:18]} 28. Qe3 {[%clk 0:00:19]}  Qxd6 {[%clk 0:00:14]} 29. Kb1 {[%clk 0:00:15]}  Qxh2 {[%clk 0:00:09]} 30. Qe7+ {[%clk 0:00:14]}  Kg8 {[%clk 0:00:09]} 31. d6 {[%clk 0:00:15]}  Rd4 {[%clk 0:00:06]} 32. Nb5 {[%clk 0:00:12]}  Rd2 {[%clk 0:00:04]} 33. Qd8+ {[%clk 0:00:08]}  Kh7 {[%clk 0:00:04]} 34. Qe7 {[%clk 0:00:06]}  a6 {[%clk 0:00:03]} 35. Nc3 {[%clk 0:00:06]}  Qg3 {[%clk 0:00:02]} 36. Qe3 {[%clk 0:00:04]}  Qxe3 {[%clk 0:00:01]} 37. Rxe3 {[%clk 0:00:05]}  h2 {[%clk 0:00:02]} 38. Rh3+ {[%clk 0:00:05]}  Kg8 {[%clk 0:00:02]} 39. Kc1 {[%clk 0:00:06]}  Rg2 {[%clk 0:00:02]} 40. Nd1 {[%clk 0:00:06]}  g6 {[%clk 0:00:01]} 41. c4 {[%clk 0:00:04]}  g5 {[%clk 0:00:01]} 42. b4 {[%clk 0:00:03]}  g4 {[%clk 0:00:02]} 43. Rh4 {[%clk 0:00:04]}  g3 {[%clk 0:00:02]} 44. b5 {[%clk 0:00:04]}  axb5 {[%clk 0:00:02]} 45. cxb5 {[%clk 0:00:05]}  Rg1 {[%clk 0:00:02]} 46. Rg4+ {[%clk 0:00:03]}  Kf8 {[%clk 0:00:02]} 47. Rc4 {[%clk 0:00:01]}  Rxd1+ {[%clk 0:00:02]} 48. Kxd1 {[%clk 0:00:01]}  h1=Q+ {[%clk 0:00:03]} 49. Kc2 {[%clk 0:00:02]}  Qd5 {[%clk 0:00:04]} 50. Kb3 {[%clk 0:00:02]}  Kg7 {[%clk 0:00:05]} 51. d7 {[%clk 0:00:02]}  g2 {[%clk 0:00:06]} 52. d8=Q {[%clk 0:00:03]}  Qxd8 {[%clk 0:00:06]} 53. Kb4 {[%clk 0:00:04]}  Qd5 {[%clk 0:00:07]} 54. Rc5 {[%clk 0:00:04]}  Qxc5+ {[%clk 0:00:07]} 55. Kxc5 {[%clk 0:00:04]}  g1=Q+ {[%clk 0:00:08]} 56. Kd6 {[%clk 0:00:05]}  Qf2 {[%clk 0:00:09]} 57. Kc7 {[%clk 0:00:05]}  Qxa2 {[%clk 0:00:09]} 58. Kxb7 {[%clk 0:00:06]}  Qa5 {[%clk 0:00:10]} 59. Kb8 {[%clk 0:00:07]}  Nd5 {[%clk 0:00:10]} 60. Kc8 {[%clk 0:00:08]}  Qc7# {[%clk 0:00:10]} 0-1


[Site "https://www.chess.com"]

[Event "Titled Tuesday Blitz May 16 Late 2023"]
[White "Domingo Nunez, Alejandro"]
[Black "Kravtsiv, Martyn"]
[WhiteFideId "22245561"]
[BlackFideId "14113147"]
[WhiteElo "2291"]
[BlackElo "2695"]
[Result "0-1"]
[Round "04"]
[TimeControl "180+2"]
[Date "2023.05.16"]
[WhiteClock "0:00:00"]
[BlackClock "0:00:35"]

1. Nf3 {[%clk 0:03:00]}  c5 {[%clk 0:02:56]} 2. g3 {[%clk 0:02:59]}  Nf6 {[%clk 0:02:56]} 3. Bg2 {[%clk 0:02:59]}  Nc6 {[%clk 0:02:57]} 4. d4 {[%clk 0:02:59]}  cxd4 {[%clk 0:02:54]} 5. Nxd4 {[%clk 0:03:00]}  g6 {[%clk 0:02:54]} 6. O-O {[%clk 0:03:00]}  Bg7 {[%clk 0:02:55]} 7. Nb3 {[%clk 0:02:57]}  O-O {[%clk 0:02:52]} 8. Nc3 {[%clk 0:02:55]}  d6 {[%clk 0:02:53]} 9. h3 {[%clk 0:02:52]}  Be6 {[%clk 0:02:48]} 10. Be3 {[%clk 0:02:51]}  Rc8 {[%clk 0:02:46]} 11. a4 {[%clk 0:02:46]}  a6 {[%clk 0:02:41]} 12. Nd4 {[%clk 0:02:38]}  Nxd4 {[%clk 0:02:32]} 13. Bxd4 {[%clk 0:02:39]}  Qd7 {[%clk 0:02:32]} 14. Kh2 {[%clk 0:02:40]}  Rc4 {[%clk 0:02:31]} 15. e3 {[%clk 0:02:38]}  Rfc8 {[%clk 0:02:29]} 16. a5 {[%clk 0:02:36]}  Bf5 {[%clk 0:02:26]} 17. Qd2 {[%clk 0:02:19]}  h5 {[%clk 0:02:19]} 18. Ra2 {[%clk 0:02:02]}  e5 {[%clk 0:02:15]} 19. Bb6 {[%clk 0:02:01]}  d5 {[%clk 0:02:13]} 20. Rd1 {[%clk 0:01:54]}  d4 {[%clk 0:02:11]} 21. exd4 {[%clk 0:01:31]}  exd4 {[%clk 0:02:12]} 22. Bxd4 {[%clk 0:01:27]}  Ng4+ {[%clk 0:01:53]} 23. hxg4 {[%clk 0:01:27]}  Rxd4 {[%clk 0:01:53]} 24. Qe1 {[%clk 0:00:57]}  Bxg4 {[%clk 0:01:52]} 25. Rxd4 {[%clk 0:00:57]}  Bxd4 {[%clk 0:01:52]} 26. Nd5 {[%clk 0:00:43]}  Rxc2 {[%clk 0:01:41]} 27. Qe4 {[%clk 0:00:43]}  Rd2 {[%clk 0:01:31]} 28. Qf4 {[%clk 0:00:32]}  Rd1 {[%clk 0:01:12]} 29. Ra1 {[%clk 0:00:23]}  Bg7 {[%clk 0:00:39]} 30. Rxd1 {[%clk 0:00:05]}  Bxd1 {[%clk 0:00:40]} 31. Qe3 {[%clk 0:00:00]}  Kh7 {[%clk 0:00:35]} 0-1


[Site "https://www.chess.com"]

[Event "Titled Tuesday Blitz May 16 Late 2023"]
[White "Suyarov, Mukhammadzokhid"]
[Black "Spitzl, Vinzent"]
[WhiteFideId "14210495"]
[BlackFideId "12901253"]
[WhiteElo "2361"]
[BlackElo "2225"]
[Result "1/2-1/2"]
[Round "04"]
[TimeControl "180+2"]
[Date "2023.05.16"]
[WhiteClock "0:01:13"]
[BlackClock "0:01:22"]

1. d4 {[%clk 0:03:00]}  Nf6 {[%clk 0:02:59]} 2. Nc3 {[%clk 0:03:00]}  d5 {[%clk 0:02:59]} 3. Bf4 {[%clk 0:02:51]}  c5 {[%clk 0:02:59]} 4. e4 {[%clk 0:02:49]}  Nxe4 {[%clk 0:02:57]} 5. Nxe4 {[%clk 0:02:44]}  dxe4 {[%clk 0:02:58]} 6. dxc5 {[%clk 0:02:45]}  Qa5+ {[%clk 0:02:58]} 7. c3 {[%clk 0:02:46]}  Qxc5 {[%clk 0:02:59]} 8. Qa4+ {[%clk 0:02:46]}  Nc6 {[%clk 0:02:58]} 9. Qxe4 {[%clk 0:02:46]}  g6 {[%clk 0:02:59]} 10. Nf3 {[%clk 0:02:46]}  Bg7 {[%clk 0:02:59]} 11. Qe3 {[%clk 0:02:46]}  Qa5 {[%clk 0:02:52]} 12. Bh6 {[%clk 0:02:43]}  O-O {[%clk 0:02:51]} 13. Bxg7 {[%clk 0:02:43]}  Kxg7 {[%clk 0:02:51]} 14. Bc4 {[%clk 0:02:40]}  Bf5 {[%clk 0:02:48]} 15. O-O {[%clk 0:02:39]}  Rad8 {[%clk 0:02:46]} 16. a4 {[%clk 0:02:31]}  Qb6 {[%clk 0:02:40]} 17. Qxb6 {[%clk 0:02:29]}  axb6 {[%clk 0:02:40]} 18. Bb5 {[%clk 0:02:20]}  Be4 {[%clk 0:02:35]} 19. Bxc6 {[%clk 0:02:17]}  bxc6 {[%clk 0:02:34]} 20. Rfe1 {[%clk 0:02:15]}  Bxf3 {[%clk 0:02:31]} 21. gxf3 {[%clk 0:02:16]}  Kf6 {[%clk 0:02:29]} 22. Rad1 {[%clk 0:02:15]}  Rxd1 {[%clk 0:02:24]} 23. Rxd1 {[%clk 0:02:16]}  Ra8 {[%clk 0:02:24]} 24. b3 {[%clk 0:02:06]}  b5 {[%clk 0:02:24]} 25. axb5 {[%clk 0:02:06]}  cxb5 {[%clk 0:02:24]} 26. Rd5 {[%clk 0:02:07]}  Rc8 {[%clk 0:02:22]} 27. Rxb5 {[%clk 0:02:06]}  Rxc3 {[%clk 0:02:22]} 28. Kg2 {[%clk 0:02:07]}  e5 {[%clk 0:02:20]} 29. b4 {[%clk 0:02:06]}  h5 {[%clk 0:02:15]} 30. Rb8 {[%clk 0:02:05]}  Kf5 {[%clk 0:02:15]} 31. b5 {[%clk 0:02:02]}  Kf4 {[%clk 0:02:12]} 32. Rf8 {[%clk 0:01:58]}  f5 {[%clk 0:02:09]} 33. b6 {[%clk 0:01:56]}  Rb3 {[%clk 0:02:09]} 34. Rf6 {[%clk 0:01:56]}  g5 {[%clk 0:02:07]} 35. h3 {[%clk 0:01:56]}  h4 {[%clk 0:02:04]} 36. Re6 {[%clk 0:01:50]}  Rb4 {[%clk 0:02:04]} 37. Rg6 {[%clk 0:01:48]}  Rb3 {[%clk 0:02:04]} 38. Rf6 {[%clk 0:01:47]}  Rb4 {[%clk 0:02:04]} 39. Kf1 {[%clk 0:01:46]}  Rb2 {[%clk 0:02:00]} 40. Ke1 {[%clk 0:01:45]}  Rb5 {[%clk 0:01:42]} 41. Kd2 {[%clk 0:01:40]}  Kxf3 {[%clk 0:01:42]} 42. Rxf5+ {[%clk 0:01:40]}  Kg2 {[%clk 0:01:43]} 43. Rxg5+ {[%clk 0:01:19]}  Kxf2 {[%clk 0:01:40]} 44. Rg6 {[%clk 0:01:15]}  e4 {[%clk 0:01:31]} 45. Rf6+ {[%clk 0:01:15]}  Kg3 {[%clk 0:01:30]} 46. Ke3 {[%clk 0:01:16]}  Kxh3 {[%clk 0:01:29]} 47. Rg6 {[%clk 0:01:16]}  Kh2 {[%clk 0:01:27]} 48. Kxe4 {[%clk 0:01:15]}  h3 {[%clk 0:01:27]} 49. Kd4 {[%clk 0:01:16]}  Kh1 {[%clk 0:01:26]} 50. Kc4 {[%clk 0:01:15]}  Rb1 {[%clk 0:01:26]} 51. Kc5 {[%clk 0:01:14]}  h2 {[%clk 0:01:24]} 52. Rg7 {[%clk 0:01:14]}  Rxb6 {[%clk 0:01:22]} 53. Kxb6 {[%clk 0:01:13]} 1/2-1/2


[Site "https://www.chess.com"]

[Event "Titled Tuesday Blitz May 16 Late 2023"]
[White "Janaszak, Dawid"]
[Black "Yanchenko, Roman"]
[WhiteFideId "1119206"]
[BlackFideId "4137329"]
[WhiteElo "2220"]
[BlackElo "2491"]
[Result "1-0"]
[Round "04"]
[TimeControl "180+2"]
[Date "2023.05.16"]
[WhiteClock "0:00:06"]
[BlackClock "0:00:00"]

1. e4 {[%clk 0:02:57]}  e6 {[%clk 0:03:00]} 2. d4 {[%clk 0:02:54]}  d5 {[%clk 0:03:01]} 3. Bd3 {[%clk 0:02:53]}  c5 {[%clk 0:03:01]} 4. exd5 {[%clk 0:02:52]}  exd5 {[%clk 0:03:02]} 5. c3 {[%clk 0:02:52]}  c4 {[%clk 0:03:02]} 6. Bc2 {[%clk 0:02:52]}  Bd6 {[%clk 0:03:03]} 7. Qf3 {[%clk 0:02:45]}  Ne7 {[%clk 0:02:58]} 8. Ne2 {[%clk 0:02:43]}  Nbc6 {[%clk 0:02:58]} 9. Bf4 {[%clk 0:02:42]}  O-O {[%clk 0:02:57]} 10. Nd2 {[%clk 0:02:39]}  Re8 {[%clk 0:02:52]} 11. O-O {[%clk 0:02:36]}  Bf5 {[%clk 0:02:22]} 12. Rac1 {[%clk 0:02:18]}  Bxc2 {[%clk 0:02:13]} 13. Rxc2 {[%clk 0:02:18]}  Ng6 {[%clk 0:02:12]} 14. Be3 {[%clk 0:02:06]}  Qd7 {[%clk 0:01:58]} 15. g3 {[%clk 0:01:50]}  Bc7 {[%clk 0:01:53]} 16. Kg2 {[%clk 0:01:43]}  Re6 {[%clk 0:01:50]} 17. b3 {[%clk 0:01:28]}  Rf6 {[%clk 0:01:35]} 18. Qh5 {[%clk 0:01:28]}  cxb3 {[%clk 0:01:16]} 19. axb3 {[%clk 0:01:29]}  Re8 {[%clk 0:01:11]} 20. Nf3 {[%clk 0:01:29]}  h6 {[%clk 0:00:53]} 21. b4 {[%clk 0:01:21]}  a6 {[%clk 0:00:53]} 22. Rb2 {[%clk 0:01:18]}  Na7 {[%clk 0:00:51]} 23. Rc1 {[%clk 0:00:55]}  Nb5 {[%clk 0:00:51]} 24. Nfg1 {[%clk 0:00:42]}  Rf5 {[%clk 0:00:45]} 25. Qh3 {[%clk 0:00:41]}  Nd6 {[%clk 0:00:45]} 26. Nf4 {[%clk 0:00:35]}  Nc4 {[%clk 0:00:42]} 27. Nxg6 {[%clk 0:00:31]}  fxg6 {[%clk 0:00:32]} 28. Re2 {[%clk 0:00:30]}  Qf7 {[%clk 0:00:32]} 29. Rce1 {[%clk 0:00:17]}  Re4 {[%clk 0:00:31]} 30. f3 {[%clk 0:00:16]}  Re6 {[%clk 0:00:26]} 31. f4 {[%clk 0:00:17]}  Qe8 {[%clk 0:00:24]} 32. Bf2 {[%clk 0:00:16]}  Rxe2 {[%clk 0:00:19]} 33. Rxe2 {[%clk 0:00:17]}  Qf7 {[%clk 0:00:20]} 34. Qg4 {[%clk 0:00:16]}  Nd6 {[%clk 0:00:18]} 35. Nf3 {[%clk 0:00:16]}  Ne4 {[%clk 0:00:18]} 36. Be1 {[%clk 0:00:16]}  h5 {[%clk 0:00:18]} 37. Qh3 {[%clk 0:00:14]}  g5 {[%clk 0:00:17]} 38. Nxg5 {[%clk 0:00:12]}  Nxg5 {[%clk 0:00:17]} 39. fxg5 {[%clk 0:00:13]}  g6 {[%clk 0:00:18]} 40. Bd2 {[%clk 0:00:10]}  Rf1 {[%clk 0:00:17]} 41. g4 {[%clk 0:00:10]}  h4 {[%clk 0:00:14]} 42. Be3 {[%clk 0:00:08]}  Rb1 {[%clk 0:00:07]} 43. Rf2 {[%clk 0:00:08]}  Qe6 {[%clk 0:00:07]} 44. Qf3 {[%clk 0:00:08]}  Bd6 {[%clk 0:00:04]} 45. c4 {[%clk 0:00:06]}  Rb3 {[%clk 0:00:00]} 46. cxd5 {[%clk 0:00:06]} 1-0


[Site "https://www.chess.com"]